[Event "Israeli U18-Team-ch 2024"]
[Site "Rishon LeZion"]
[Date "2024.08.01"]
[Round "4.1"]
[White "Sokolovsky, Yahli"]
[Black "Levin, Guy"]
[Result "1-0"]
[ECO "B29"]
[WhiteElo "2492"]
[BlackElo "2470"]
[Annotator "TA"]
[PlyCount "99"]
[EventDate "2024.08.01"]
[EventType "team-tourn"]
[EventCountry "ISR"]
[SourceTitle "playchess.com"]
[Source "ChessBase"]
[SourceQuality "1"]
[TimeControl "3000+10"]

{[%evp 22,98,103,123,109,118,116,85,73,75,147,43,41,43,48,47,48,56,39,35,41,41,50,40,38,7,4,0,9,0,0,0,36,31,36,34,20,36,41,35,60,39,41,56,82,60,55,0,74,67,70,50,87,91,93,88,84,79,91,91,93,91,87,88,86,92,114,115,187,191,192,202,287,278,668,263,337,341,667]} 1. e4 {[%emt 0:00:03] Anand,Viswanathan} c5 {[%emt 0:00:02]} 2. Nf3 {[%emt 0:00:09]} Nf6 {[%emt 0:00:05]} 3. e5 {[%emt 0:00:28]} Nd5 {[%emt 0:00:03]} 4. Nc3 {[%emt 0:00:06]} e6 {[%emt 0:00:04]} 5. Nxd5 {[%emt 0:00:23]} exd5 {[%emt 0:00:02]} 6. d4 {[%emt 0:00:07]} Nc6 {[%emt 0:00:03]} 7. dxc5 {[%emt 0:00:06]} Bxc5 {[%emt 0:00:05]} 8. Qxd5 {[%emt 0:00:06]} d6 {[%emt 0:01:06]} 9. exd6 {[%emt 0:00:14]} Qb6 {[%emt 0:00:05]} 10. Qe4+ {[%emt 0:00:12] B29: Sicilian: 2 Nf3 Nf6 (Nimzowitsch Variation).} Be6 {[%emt 0:00:07]} 11. Bc4 {[%emt 0:00:04]} Qb4+ {[%emt 0:11:21]} ({Black should play} 11... Bxf2+ $14 12. Kd1 Qb4 13. d7+ Kxd7) 12. Nd2 $16 {[%emt 0:00:17]} O-O {[%emt 0:00:11]} 13. Bd3 $146 {[%emt 0:18:26]} ({Predecessor:} 13. O-O Rae8 14. c3 Qb6 15. Nf3 h6 16. b4 Bxd6 17. Be3 Qc7 18. Bxe6 Rxe6 19. Qc4 {1-0 Van der Wiel,J (2550)-Short,N (2635) Hoogovens Wijk aan Zee 1990 (9)}) 13... g6 {[%emt 0:00:21]} 14. a3 {[%emt 0:00:39]} Qa5 {[%emt 0:06:27]} 15. O-O {[%emt 0:01:39]} Bf5 {[%emt 0:01:05] [#]} (15... Bxd6 $142 16. Nc4 Bxc4 17. Bxc4 (17. Qxc4 Rfe8 $16) 17... Qc7) 16. Qh4 {[%emt 0:02:58]} (16. Qf4 $1 $16 Bxd3 17. cxd3) 16... Bxd3 $14 {[%emt 0:00:16]} 17. cxd3 {[%emt 0:00:13]} Qd8 {[%emt 0:01:46]} 18. Qxd8 {[%emt 0:06:32]} (18. Qh6 {is more complex.} f6 19. Ne4 Bxd6 20. Bd2) 18... Rfxd8 {[%emt 0:01:03]} 19. Ne4 {[%emt 0:02:03]} Bxd6 {[%emt 0:00:05]} 20. Bg5 {[%emt 0:00:58]} Be7 {[%emt 0:00:03]} 21. Bxe7 {[%emt 0:00:08]} Nxe7 {[%emt 0:00:01]} 22. Rac1 {[%emt 0:00:49]} Nc6 {[%emt 0:04:43]} 23. Nc5 {[%emt 0:02:35]} Nd4 {[%emt 0:03:25]} 24. Rfe1 {[%emt 0:01:25]} b6 {[%emt 0:00:41]} 25. Ne4 {[%emt 0:00:48]} Ne6 {[%emt 0:00:17]} 26. Re3 {[%emt 0:02:32]} Rd4 {[%emt 0:00:40]} 27. Rc4 {[%emt 0:06:41]} Rad8 {[%emt 0:01:40]} 28. Rxd4 {[%emt 0:00:05]} Nxd4 {[%emt 0:02:45]} 29. Kf1 {[%emt 0:01:01]} Nf5 {[%emt 0:01:28]} 30. Rh3 {[%emt 0:00:01]} h5 {[%emt 0:00:49]} 31. Ke2 {[%emt 0:00:02]} Kg7 {[%emt 0:01:21]} 32. Kd2 {[%emt 0:00:07]} Rd5 {[%emt 0:02:23]} 33. Nc3 {[%emt 0:00:46]} Rd4 {[%emt 0:00:42]} 34. Ne4 {[%emt 0:00:35]} Rd5 $1 {[%emt 0:00:18]} 35. f4 {[%emt 0:00:22]} a5 {[%emt 0:03:57]} 36. Nc3 {[%emt 0:00:41]} Rd6 {[%emt 0:02:13]} 37. Rf3 {[%emt 0:00:11]} Nd4 {[%emt 0:00:38]} 38. Re3 {[%emt 0:00:01]} Nb3+ {[%emt 0:00:00] [#]} 39. Kd1 $1 {[%emt 0:00:01]} Nc5 {[%emt 0:01:12]} 40. Kc2 {[%emt 0:00:11]} Ne6 {[%emt 0:00:07]} 41. Ne2 {[%emt 0:00:14]} Rc6+ {[%emt 0:00:54]} 42. Kd2 {[%emt 0:00:01]} Rd6 {[%emt 0:00:14]} 43. Re5 {[%emt 0:01:09]} Kf6 {[%emt 0:00:32]} 44. Ke3 {[%emt 0:00:26]} g5 {[%emt 0:00:33]} (44... Kg7 $16 45. Nc3 Kf8) 45. g3 $18 {[%emt 0:00:01]} gxf4+ {[%emt 0:01:01]} 46. gxf4 {[%emt 0:00:02]} Nc5 {[%emt 0:00:21]} (46... h4 $142 47. d4 Rd8) 47. d4 $18 {[%emt 0:00:08]} (47. Rxh5 $2 Rxd3+ 48. Kf2 Rb3 $17) 47... Ne6 $2 {[%emt 0:00:24]} (47... Nd7 48. Ng3 (48. Rxh5 Ke7 $18) 48... Re6 49. Nxh5+ Ke7 50. Rxe6+ Kxe6) 48. Rxh5 $2 {[%emt 0:00:04]} (48. Ng3) 48... Rd8 {[%emt 0:00:12]} 49. Nc3 {[%emt 0:00:20]} Rxd4 $2 {[%emt 0:00:16]} (49... Nc7 50. Rh6+ Ke7) 50. Rh6+ {[%emt 0:00:25]} ({Not} 50. f5 Ng7 $14) 1-0

[Event "Israeli U18-Team-ch 2024"]
[Site "Rishon LeZion"]
[Date "2024.08.01"]
[Round "4.2"]
[White "Uritsky, Yonathan"]
[Black "Vagman, Roy"]
[Result "0-1"]
[ECO "A29"]
[WhiteElo "2173"]
[BlackElo "2308"]
[Annotator "RC"]
[PlyCount "98"]
[EventDate "2024.08.01"]
[EventType "team-tourn"]
[EventCountry "ISR"]
[SourceTitle "playchess.com"]
[Source "ChessBase"]
[SourceQuality "1"]
[TimeControl "3000+10"]

1. c4 {[%emt 0:00:02]} e5 {[%emt 0:01:01]} 2. g3 {[%emt 0:00:05]} Nf6 {[%emt 0:00:04]} 3. Bg2 {[%emt 0:00:05]} d5 {[%emt 0:00:03]} 4. cxd5 {[%emt 0:00:04]} Nxd5 {[%emt 0:00:04]} 5. Nc3 {[%emt 0:00:02]} Nb6 {[%emt 0:00:15]} 6. Nf3 {[%emt 0:00:07]} Nc6 {[%emt 0:00:14]} 7. O-O {[%emt 0:00:05]} Be7 {[%emt 0:00:03]} 8. b4 {[%emt 0:01:04]} Bxb4 {[%emt 0:02:36]} 9. Bb2 {[%emt 0:00:59]} O-O {[%emt 0:00:21]} 10. d3 {[%emt 0:02:06]} Be6 {[%emt 0:00:26]} 11. a3 {[%emt 0:01:34]} Be7 {[%emt 0:01:07]} 12. Na4 {[%emt 0:01:33]} f6 {[%emt 0:01:28]} 13. Rc1 {[%emt 0:01:48]} Nxa4 {[%emt 0:04:17]} 14. Qxa4 {[%emt 0:00:01]} Qd7 {[%emt 0:04:09]} 15. Nd2 {[%emt 0:01:26]} Bd5 {[%emt 0:01:18]} 16. Ne4 {[%emt 0:01:05]} Rfd8 {[%emt 0:04:17]} 17. Nc5 {[%emt 0:01:00]} Bxc5 {[%emt 0:00:13]} 18. Rxc5 {[%emt 0:00:03]} Bxg2 {[%emt 0:00:21]} 19. Kxg2 {[%emt 0:00:01]} Nd4 {[%emt 0:01:50]} 20. Qxd7 {[%emt 0:01:52]} Rxd7 {[%emt 0:00:02]} 21. Bxd4 {[%emt 0:01:58]} exd4 {[%emt 0:00:07]} 22. Rfc1 {[%emt 0:00:20]} c6 {[%emt 0:00:16]} 23. a4 {[%emt 0:00:08]} Re8 {[%emt 0:01:47]} 24. Kf3 {[%emt 0:00:29]} Kf7 {[%emt 0:01:19]} 25. a5 {[%emt 0:00:24]} a6 {[%emt 0:00:15]} 26. Rb1 {[%emt 0:01:36]} Re6 {[%emt 0:01:42]} 27. Rb4 {[%emt 0:00:22]} Ke7 {[%emt 0:01:24]} 28. h4 {[%emt 0:01:33]} g6 {[%emt 0:01:56]} 29. h5 {[%emt 0:05:30]} g5 {[%emt 0:01:06]} 30. Rb2 {[%emt 0:02:16]} Kd6 {[%emt 0:02:11]} 31. Rc4 {[%emt 0:01:01]} Kc7 {[%emt 0:03:05]} 32. Rc5 {[%emt 0:00:01]} Rde7 {[%emt 0:02:27]} 33. Rc4 {[%emt 0:01:21]} Re5 {[%emt 0:00:57]} 34. Rcb4 {[%emt 0:00:03]} Rb5 {[%emt 0:03:25]} 35. Rxb5 {[%emt 0:00:31]} axb5 {[%emt 0:00:07]} 36. Rb4 {[%emt 0:00:12]} f5 {[%emt 0:03:01]} 37. Rxd4 {[%emt 0:01:21]} c5 {[%emt 0:03:26]} 38. Rd5 {[%emt 0:00:01]} g4+ {[%emt 0:00:55]} 39. Kf4 {[%emt 0:00:00]} Kc6 {[%emt 0:00:04]} 40. Rxf5 {[%emt 0:00:32]} Rxe2 {[%emt 0:01:34]} 41. Kxg4 {[%emt 0:00:01]} b4 {[%emt 0:00:10]} 42. f4 {[%emt 0:00:52]} Re6 {[%emt 0:00:29]} 43. Rf8 {[%emt 0:01:04]} b3 {[%emt 0:00:04]} 44. Rc8+ {[%emt 0:01:10]} Kb5 {[%emt 0:00:40]} 45. f5 {[%emt 0:01:14]} Re1 {[%emt 0:00:45]} 46. Rc7 {[%emt 0:00:17]} Ka6 {[%emt 0:00:10]} 47. Rc8 {[%emt 0:03:01]} b2 {[%emt 0:00:03]} 48. Ra8+ {[%emt 0:00:03]} Kb5 {[%emt 0:00:01]} 49. a6 {[%emt 0:00:10]} Kb6 {[%emt 0:00:28]} 0-1

[Event "Israeli U18-Team-ch 2024"]
[Site "Rishon LeZion"]
[Date "2024.08.01"]
[Round "4.3"]
[White "Pelech, Roee"]
[Black "Kochavi, Dana"]
[Result "1-0"]
[ECO "D00"]
[WhiteElo "2267"]
[BlackElo "2135"]
[Annotator "RC"]
[PlyCount "71"]
[EventDate "2024.08.01"]
[EventType "team-tourn"]
[EventCountry "ISR"]
[SourceTitle "playchess.com"]
[Source "ChessBase"]
[SourceQuality "1"]
[TimeControl "3000+10"]

1. d4 {[%emt 0:00:06]} Nf6 {[%emt 0:00:05]} 2. Nc3 {[%emt 0:00:03]} d5 {[%emt 0:00:12]} 3. Bf4 {[%emt 0:00:04]} e6 {[%emt 0:00:38]} 4. Nb5 {[%emt 0:00:03]} Na6 {[%emt 0:00:03]} 5. e3 {[%emt 0:00:17]} Be7 {[%emt 0:01:20]} 6. Nf3 {[%emt 0:00:24]} O-O {[%emt 0:00:30]} 7. Bd3 {[%emt 0:00:44]} c6 {[%emt 0:00:26]} 8. Nc3 {[%emt 0:00:11]} c5 {[%emt 0:00:19]} 9. Bxa6 {[%emt 0:00:45]} bxa6 {[%emt 0:00:07]} 10. Ne5 {[%emt 0:02:09]} Bb7 {[%emt 0:02:29]} 11. O-O {[%emt 0:01:01]} Nd7 {[%emt 0:02:33]} 12. Qg4 {[%emt 0:02:09]} cxd4 {[%emt 0:08:45]} 13. exd4 {[%emt 0:01:54]} Re8 {[%emt 0:03:40]} 14. Rfe1 {[%emt 0:02:10]} Bf8 {[%emt 0:00:56]} 15. Nxd7 {[%emt 0:02:31]} Qxd7 {[%emt 0:00:52]} 16. Re3 {[%emt 0:01:42]} Rad8 {[%emt 0:06:04]} 17. Rae1 {[%emt 0:02:43]} Bc8 {[%emt 0:01:07]} 18. Be5 {[%emt 0:00:43]} Qe7 {[%emt 0:01:32]} 19. Rf3 {[%emt 0:04:38]} Kh8 {[%emt 0:00:20]} 20. Qh5 {[%emt 0:05:11]} f6 {[%emt 0:00:13]} 21. Rh3 {[%emt 0:00:06]} h6 {[%emt 0:00:11]} 22. Bf4 {[%emt 0:01:53]} e5 {[%emt 0:10:25]} 23. Rf3 {[%emt 0:00:01]} e4 {[%emt 0:01:04]} 24. Nxd5 {[%emt 0:04:59]} Qd7 {[%emt 0:02:35]} 25. Nc7 {[%emt 0:01:51]} exf3 {[%emt 0:00:57]} 26. Rxe8 {[%emt 0:01:02]} Qxd4 {[%emt 0:00:26]} 27. Rxd8 {[%emt 0:00:25]} Qxd8 {[%emt 0:00:02]} 28. Qxf3 {[%emt 0:01:38]} Bd6 {[%emt 0:01:28]} 29. Bxd6 {[%emt 0:05:15]} Qxd6 {[%emt 0:00:34]} 30. Nd5 {[%emt 0:00:01]} Bb7 {[%emt 0:00:02]} 31. c4 {[%emt 0:00:01]} Qe5 {[%emt 0:00:01]} 32. Qc3 {[%emt 0:01:36]} Qe4 {[%emt 0:00:14]} 33. h3 {[%emt 0:00:56]} Qb1+ {[%emt 0:01:40]} 34. Kh2 {[%emt 0:00:01]} Qxa2 {[%emt 0:00:02]} 35. Nxf6 {[%emt 0:00:41]} Bxg2 {[%emt 0:03:02]} 36. Nh5 {[%emt 0:00:11]} 1-0

[Event "Israeli U18-Team-ch 2024"]
[Site "Rishon LeZion"]
[Date "2024.08.01"]
[Round "4.4"]
[White "Duchan, Yoav"]
[Black "Zakin, Ilay"]
[Result "0-1"]
[ECO "B25"]
[WhiteElo "2008"]
[BlackElo "2306"]
[Annotator "RC"]
[PlyCount "62"]
[EventDate "2024.08.01"]
[EventType "team-tourn"]
[EventCountry "ISR"]
[SourceTitle "playchess.com"]
[Source "ChessBase"]
[SourceQuality "1"]
[TimeControl "3000+10"]

1. g3 {[%emt 0:00:01]} g6 {[%emt 0:00:09]} 2. Bg2 {[%emt 0:00:02]} Bg7 {[%emt 0:00:05]} 3. d3 {[%emt 0:00:03]} d6 {[%emt 0:00:17]} 4. Nc3 {[%emt 0:00:05]} Nf6 {[%emt 0:00:05]} 5. e4 {[%emt 0:00:11]} c5 {[%emt 0:00:04]} 6. f4 {[%emt 0:00:14]} O-O {[%emt 0:00:18]} 7. Nf3 {[%emt 0:00:04]} Nc6 {[%emt 0:00:08]} 8. O-O {[%emt 0:00:11]} Rb8 {[%emt 0:00:12]} 9. h3 {[%emt 0:01:22]} b5 {[%emt 0:00:22]} 10. Be3 {[%emt 0:01:19]} Nd7 {[%emt 0:00:49]} 11. d4 {[%emt 0:02:22]} b4 {[%emt 0:04:50]} 12. Ne2 {[%emt 0:01:06]} Ba6 {[%emt 0:01:39]} 13. Rf2 {[%emt 0:01:34]} Nf6 {[%emt 0:03:19]} 14. Ne1 {[%emt 0:09:18]} Bxe2 {[%emt 0:02:56]} 15. Rxe2 {[%emt 0:00:07]} Nxd4 {[%emt 0:00:21]} 16. Bxd4 {[%emt 0:01:08]} cxd4 {[%emt 0:00:07]} 17. Qxd4 {[%emt 0:10:21]} Nh5 {[%emt 0:00:27]} 18. Qe3 {[%emt 0:01:19]} Bxb2 {[%emt 0:00:20]} 19. Rb1 {[%emt 0:00:06]} Bc3 {[%emt 0:00:22]} 20. g4 {[%emt 0:00:56]} e5 {[%emt 0:00:18]} 21. fxe5 {[%emt 0:03:55]} dxe5 {[%emt 0:00:10]} 22. Qh6 {[%emt 0:01:07]} Nf4 {[%emt 0:00:37]} 23. Rf2 {[%emt 0:01:09]} Bd4 {[%emt 0:02:05]} 24. Nf3 {[%emt 0:00:03]} Bxf2+ {[%emt 0:01:02]} 25. Kxf2 {[%emt 0:00:05]} f6 {[%emt 0:04:12]} 26. Bf1 {[%emt 0:00:16]} Qb6+ {[%emt 0:00:38]} 27. Kg3 {[%emt 0:00:56]} Qe3 {[%emt 0:00:59]} 28. Bc4+ {[%emt 0:00:06]} Kh8 {[%emt 0:00:01]} 29. g5 {[%emt 0:00:18]} fxg5 {[%emt 0:00:41]} 30. Rf1 {[%emt 0:00:13]} g4 {[%emt 0:03:19]} 31. Kxg4 {[%emt 0:00:02]} Ng2 {[%emt 0:00:36]} 0-1

[Event "Israeli U18-Team-ch 2024"]
[Site "Rishon LeZion"]
[Date "2024.08.01"]
[Round "4.6"]
[White "Milikow, Elie"]
[Black "Meirovich, Ilay"]
[Result "1-0"]
[ECO "B29"]
[WhiteElo "2399"]
[BlackElo "1957"]
[Annotator "RC"]
[PlyCount "51"]
[EventDate "2024.08.01"]
[EventType "team-tourn"]
[EventCountry "ISR"]
[SourceTitle "playchess.com"]
[Source "ChessBase"]
[SourceQuality "1"]
[TimeControl "3000+10"]

1. e4 {[%emt 0:00:03]} c5 {[%emt 0:00:03]} 2. Nf3 {[%emt 0:00:06]} Nf6 {[%emt 0:00:33]} 3. e5 {[%emt 0:00:15]} Nd5 {[%emt 0:00:05]} 4. Nc3 {[%emt 0:00:07]} e6 {[%emt 0:00:04]} 5. g3 {[%emt 0:03:22]} d6 {[%emt 0:03:34]} 6. Bg2 {[%emt 0:01:28]} Nc6 {[%emt 0:00:14]} 7. exd6 {[%emt 0:02:24]} Bxd6 {[%emt 0:01:52]} 8. O-O {[%emt 0:01:02]} O-O {[%emt 0:00:26]} 9. Re1 {[%emt 0:01:40]} Be7 {[%emt 0:05:03]} 10. d4 {[%emt 0:05:10]} cxd4 {[%emt 0:08:08]} 11. Nxd4 {[%emt 0:02:12]} Bf6 {[%emt 0:03:04]} 12. Nxd5 {[%emt 0:09:03]} Bxd4 {[%emt 0:01:14]} 13. Ne3 {[%emt 0:10:58]} Qb6 {[%emt 0:04:24]} 14. Qe2 {[%emt 0:04:32]} Rd8 {[%emt 0:01:45]} 15. c3 {[%emt 0:08:54]} Bc5 {[%emt 0:00:10]} 16. Nc4 {[%emt 0:00:25]} Qc7 {[%emt 0:03:04]} 17. Bf4 {[%emt 0:00:02]} Qe7 {[%emt 0:00:53]} 18. b4 {[%emt 0:00:33]} Bb6 {[%emt 0:00:07]} 19. Nxb6 {[%emt 0:00:02]} axb6 {[%emt 0:00:05]} 20. Be3 {[%emt 0:00:22]} Qc7 {[%emt 0:00:37]} 21. Qb5 {[%emt 0:00:19]} Ra6 {[%emt 0:00:13]} 22. Qc4 {[%emt 0:00:14]} b5 {[%emt 0:01:44]} 23. Qxb5 {[%emt 0:00:07]} e5 {[%emt 0:00:51]} 24. Qc5 {[%emt 0:00:17]} Be6 {[%emt 0:01:12]} 25. b5 {[%emt 0:00:08]} Ra5 {[%emt 0:00:03]} 26. Bxc6 {[%emt 0:00:10]} 1-0

[Event "Israeli U18-Team-ch 2024"]
[Site "Rishon LeZion"]
[Date "2024.08.01"]
[Round "4.7"]
[White "Abitbul, Matan"]
[Black "Gilor, Amit"]
[Result "1-0"]
[ECO "B07"]
[WhiteElo "2035"]
[BlackElo "1905"]
[Annotator "RC"]
[PlyCount "71"]
[EventDate "2024.08.01"]
[EventType "team-tourn"]
[EventCountry "ISR"]
[SourceTitle "playchess.com"]
[Source "ChessBase"]
[SourceQuality "1"]
[TimeControl "3000+10"]

1. d4 {[%emt 0:00:12]} Nf6 {[%emt 0:01:13]} 2. g3 {[%emt 0:00:49]} g6 {[%emt 0:00:35]} 3. Bg2 {[%emt 0:00:02]} Bg7 {[%emt 0:00:09]} 4. e4 {[%emt 0:00:02]} d6 {[%emt 0:01:09]} 5. Nc3 {[%emt 0:49:55]} Nbd7 {[%emt 0:01:47]} 6. Nge2 {[%emt 0:00:00]} e5 {[%emt 0:02:14]} 7. h3 {[%emt 0:00:00]} O-O {[%emt 0:01:28]} 8. O-O {[%emt 0:00:00]} Re8 {[%emt 0:01:06]} 9. Re1 {[%emt 0:00:00]} exd4 {[%emt 0:00:48]} 10. Nxd4 {[%emt 0:00:00]} Nc5 {[%emt 0:00:10]} 11. Nb3 {[%emt 0:00:00]} Nxb3 {[%emt 0:01:06]} 12. axb3 {[%emt 0:00:00]} Qe7 {[%emt 0:04:33]} 13. Bg5 {[%emt 0:00:00]} c6 {[%emt 0:03:45]} 14. Qd2 {[%emt 0:00:00]} Be6 {[%emt 0:02:10]} 15. Rad1 {[%emt 0:00:00]} Red8 {[%emt 0:02:47]} 16. Nd5 {[%emt 0:00:00]} cxd5 {[%emt 0:05:59]} 17. exd5 {[%emt 0:00:00]} Qd7 {[%emt 0:02:16]} 18. dxe6 {[%emt 0:02:10]} fxe6 {[%emt 0:00:07]} 19. Qf4 {[%emt 0:00:00]} e5 {[%emt 0:00:40]} 20. Qf3 {[%emt 0:00:00]} Qf5 {[%emt 0:01:44]} 21. Qxf5 {[%emt 0:00:00]} gxf5 {[%emt 0:00:22]} 22. Bxb7 {[%emt 0:00:00]} Rab8 {[%emt 0:00:11]} 23. Bg2 {[%emt 0:00:00]} Kf7 {[%emt 0:01:23]} 24. Ra1 {[%emt 0:00:00]} Rd7 {[%emt 0:00:08]} 25. Be3 {[%emt 0:00:00]} Rc8 {[%emt 0:00:10]} 26. c3 {[%emt 0:00:00]} Rcc7 {[%emt 0:00:06]} 27. Ra5 {[%emt 0:00:00]} d5 {[%emt 0:00:49]} 28. Rd1 {[%emt 0:00:00]} Ke6 {[%emt 0:00:47]} 29. f4 {[%emt 0:00:00]} Ne4 {[%emt 0:01:58]} 30. Bxe4 {[%emt 0:00:00]} fxe4 {[%emt 0:00:18]} 31. f5+ {[%emt 0:00:00]} Kf6 {[%emt 0:00:53]} 32. Rdxd5 {[%emt 0:00:00]} Rxd5 {[%emt 0:00:07]} 33. Rxd5 {[%emt 0:00:00]} Kxf5 {[%emt 0:00:09]} 34. Kf2 {[%emt 0:00:00]} Rf7 {[%emt 0:01:37]} 35. Ke2 {[%emt 0:00:00]} Kg6 {[%emt 0:00:36]} 36. Ra5 {[%emt 0:00:00]} 1-0

[Event "Israeli U18-Team-ch 2024"]
[Site "Rishon LeZion"]
[Date "2024.08.01"]
[Round "4.8"]
[White "Magen, Ofek"]
[Black "Berlad, Asaf"]
[Result "1-0"]
[ECO "D32"]
[WhiteElo "1911"]
[BlackElo "1955"]
[Annotator "RC"]
[PlyCount "61"]
[EventDate "2024.08.01"]
[EventType "team-tourn"]
[EventCountry "ISR"]
[SourceTitle "playchess.com"]
[Source "ChessBase"]
[SourceQuality "1"]
[TimeControl "3000+10"]

1. d4 {[%emt 0:00:21]} d5 {[%emt 0:00:22]} 2. c4 {[%emt 0:00:09]} e6 {[%emt 0:00:13]} 3. Nc3 {[%emt 0:00:08]} c5 {[%emt 0:00:13]} 4. e3 {[%emt 0:01:07]} Nf6 {[%emt 0:00:24]} 5. Nf3 {[%emt 0:00:11]} a6 {[%emt 0:00:15]} 6. dxc5 {[%emt 0:04:17]} Bxc5 {[%emt 0:00:26]} 7. cxd5 {[%emt 0:00:07]} exd5 {[%emt 0:00:35]} 8. Be2 {[%emt 0:00:29]} O-O {[%emt 0:00:25]} 9. O-O {[%emt 0:00:04]} Nc6 {[%emt 0:01:10]} 10. b3 {[%emt 0:07:32]} d4 {[%emt 0:07:46]} 11. Na4 {[%emt 0:01:54]} Ba7 {[%emt 0:00:45]} 12. exd4 {[%emt 0:01:22]} b5 {[%emt 0:03:36]} 13. Nc5 {[%emt 0:03:10]} Nxd4 {[%emt 0:00:24]} 14. Qxd4 {[%emt 0:00:26]} Qxd4 {[%emt 0:00:09]} 15. Nxd4 {[%emt 0:00:01]} Bxc5 {[%emt 0:00:14]} 16. Bb2 {[%emt 0:01:02]} Bb7 {[%emt 0:00:33]} 17. Rac1 {[%emt 0:01:25]} Rac8 {[%emt 0:00:39]} 18. Nf5 {[%emt 0:05:40]} Rfe8 {[%emt 0:05:01]} 19. Bd3 {[%emt 0:02:34]} Red8 {[%emt 0:05:41]} 20. Rcd1 {[%emt 0:05:17]} Ne8 {[%emt 0:06:14]} 21. Bb1 {[%emt 0:01:09]} f6 {[%emt 0:00:30]} 22. h3 {[%emt 0:02:09]} Kf8 {[%emt 0:01:18]} 23. Nd4 {[%emt 0:00:30]} Bxd4 {[%emt 0:01:22]} 24. Bxd4 {[%emt 0:01:32]} Kf7 {[%emt 0:00:20]} 25. b4 {[%emt 0:00:38]} Bd5 {[%emt 0:01:56]} 26. Bb6 {[%emt 0:01:06]} Rd6 {[%emt 0:01:08]} 27. Bc5 {[%emt 0:00:10]} Rdd8 {[%emt 0:00:05]} 28. Rfe1 {[%emt 0:00:06]} Be6 {[%emt 0:02:44]} 29. Be4 {[%emt 0:02:36]} Bxa2 {[%emt 0:01:57]} 30. Ra1 {[%emt 0:01:00]} Rd2 {[%emt 0:01:00]} 31. Rxa2 {[%emt 0:00:13]} 1-0

[Event "Israeli U18-Team-ch 2024"]
[Site "Rishon LeZion"]
[Date "2024.08.01"]
[Round "4.9"]
[White "Orian, Noga"]
[Black "Ribstein, Orel"]
[Result "1-0"]
[ECO "E73"]
[WhiteElo "2113"]
[BlackElo "2066"]
[Annotator "RC"]
[PlyCount "83"]
[EventDate "2024.08.01"]
[EventType "team-tourn"]
[EventCountry "ISR"]
[SourceTitle "playchess.com"]
[Source "ChessBase"]
[SourceQuality "1"]
[TimeControl "3000+10"]

1. d4 {[%emt 0:00:03]} Nf6 {[%emt 0:00:26]} 2. c4 {[%emt 0:00:07]} g6 {[%emt 0:00:05]} 3. h4 {[%emt 0:00:31]} Bg7 {[%emt 0:00:40]} 4. Nc3 {[%emt 0:00:08]} d6 {[%emt 0:00:07]} 5. e4 {[%emt 0:00:07]} O-O {[%emt 0:00:29]} 6. Be2 {[%emt 0:00:06]} c5 {[%emt 0:00:25]} 7. d5 {[%emt 0:00:11]} b5 {[%emt 0:00:15]} 8. cxb5 {[%emt 0:00:11]} a6 {[%emt 0:00:01]} 9. bxa6 {[%emt 0:00:58]} Bxa6 {[%emt 0:00:28]} 10. Nf3 {[%emt 0:00:16]} Qa5 {[%emt 0:05:07]} 11. O-O {[%emt 0:00:55]} Nbd7 {[%emt 0:06:54]} 12. Bg5 {[%emt 0:01:17]} Rfb8 {[%emt 0:06:19]} 13. Qc2 {[%emt 0:01:07]} Qb4 {[%emt 0:01:30]} 14. Rab1 {[%emt 0:01:27]} h6 {[%emt 0:01:17]} 15. Bf4 {[%emt 0:01:00]} Ng4 {[%emt 0:03:10]} 16. Rfc1 {[%emt 0:05:36]} Bxe2 {[%emt 0:00:39]} 17. Qxe2 {[%emt 0:02:08]} Nge5 {[%emt 0:02:06]} 18. Nxe5 {[%emt 0:01:24]} Nxe5 {[%emt 0:00:02]} 19. b3 {[%emt 0:01:28]} Nd7 {[%emt 0:00:35]} 20. Bd2 {[%emt 0:00:32]} Qa3 {[%emt 0:05:17]} 21. Rc2 {[%emt 0:02:09]} h5 {[%emt 0:01:36]} 22. Qf1 {[%emt 0:06:48]} Ne5 {[%emt 0:03:11]} 23. Nb5 {[%emt 0:01:27]} Qa6 {[%emt 0:00:01]} 24. a4 {[%emt 0:00:11]} Rb7 {[%emt 0:02:19]} 25. Rcc1 {[%emt 0:00:51]} Rab8 {[%emt 0:03:28]} 26. Bc3 {[%emt 0:00:17]} Qb6 {[%emt 0:03:58]} 27. Na3 {[%emt 0:01:30]} Qd8 {[%emt 0:00:24]} 28. Qd1 {[%emt 0:00:08]} Bh6 {[%emt 0:01:10]} 29. Nb5 {[%emt 0:02:16]} Bxc1 {[%emt 0:00:50]} 30. Qxc1 {[%emt 0:00:01]} Rxb5 {[%emt 0:00:50]} 31. axb5 {[%emt 0:00:05]} Rxb5 {[%emt 0:00:01]} 32. Qc2 {[%emt 0:09:31]} Nd7 {[%emt 0:00:16]} 33. Ra1 {[%emt 0:01:16]} Qb8 {[%emt 0:00:04]} 34. Ra3 {[%emt 0:00:22]} Qd8 {[%emt 0:01:15]} 35. Ra7 {[%emt 0:00:59]} f6 {[%emt 0:00:21]} 36. e5 {[%emt 0:01:50]} Nxe5 {[%emt 0:00:04]} 37. Bxe5 {[%emt 0:00:02]} dxe5 {[%emt 0:00:20]} 38. Qxg6+ {[%emt 0:00:57]} Kf8 {[%emt 0:00:30]} 39. Qxh5 {[%emt 0:02:18]} Qxd5 {[%emt 0:00:00]} 40. Qh8+ {[%emt 0:00:27]} Kf7 {[%emt 0:00:00]} 41. Qh7+ {[%emt 0:00:01]} Ke6 {[%emt 0:00:00]} 42. Rxe7+ {[%emt 0:00:02]} 1-0